[Event "Titled Tuesday Blitz June 13 Late 2023"]
[White "Korobov, Anton"]
[Black "Kuznetsov, Felix"]
[WhiteFideId "14105730"]
[BlackFideId "34147990"]
[WhiteElo "2638"]
[BlackElo "2281"]
[Result "1-0"]
[Round "3"]
[TimeControl "180+2"]
[Date "2023.06.13"]
[WhiteClock "0:01:34"]
[BlackClock "0:00:02"]
[Board "12"]

1. d4 {[%clk 0:03:00]}  Nf6 {[%clk 0:03:00]} 2. c4 {[%clk 0:03:00]}  e6 {[%clk 0:03:00]} 3. Nf3 {[%clk 0:03:00]}  b6 {[%clk 0:03:00]} 4. a3 {[%clk 0:03:00]}  Bb7 {[%clk 0:03:00]} 5. Nc3 {[%clk 0:03:00]}  d5 {[%clk 0:03:01]} 6. cxd5 {[%clk 0:02:57]}  Nxd5 {[%clk 0:03:01]} 7. Qa4+ {[%clk 0:02:57]}  Bc6 {[%clk 0:02:47]} 8. Qc2 {[%clk 0:02:56]}  Nxc3 {[%clk 0:02:39]} 9. bxc3 {[%clk 0:02:57]}  Be7 {[%clk 0:02:39]} 10. e4 {[%clk 0:02:57]}  Nd7 {[%clk 0:02:36]} 11. Bd3 {[%clk 0:02:53]}  O-O {[%clk 0:02:35]} 12. O-O {[%clk 0:02:53]}  Bb7 {[%clk 0:02:29]} 13. Bb2 {[%clk 0:02:53]}  Qc8 {[%clk 0:02:28]} 14. Qe2 {[%clk 0:02:52]}  a5 {[%clk 0:02:27]} 15. c4 {[%clk 0:02:50]}  e5 {[%clk 0:02:19]} 16. dxe5 {[%clk 0:02:45]}  Nc5 {[%clk 0:02:17]} 17. Bc2 {[%clk 0:02:45]}  Qe6 {[%clk 0:02:14]} 18. Rad1 {[%clk 0:02:45]}  Ba6 {[%clk 0:02:07]} 19. Rd5 {[%clk 0:02:39]}  c6 {[%clk 0:01:59]} 20. Nd4 {[%clk 0:02:39]}  Qc8 {[%clk 0:01:57]} 21. Nf5 {[%clk 0:02:39]}  Qe6 {[%clk 0:01:36]} 22. Qg4 {[%clk 0:02:37]}  g6 {[%clk 0:01:32]} 23. Rfd1 {[%clk 0:02:27]}  Bxc4 {[%clk 0:01:03]} 24. Rd6 {[%clk 0:02:27]}  Bxd6 {[%clk 0:01:02]} 25. Rxd6 {[%clk 0:02:27]}  Qe8 {[%clk 0:00:47]} 26. e6 {[%clk 0:02:28]}  f6 {[%clk 0:00:42]} 27. e7 {[%clk 0:02:28]}  Rf7 {[%clk 0:00:35]} 28. Nh6+ {[%clk 0:02:25]}  Kg7 {[%clk 0:00:32]} 29. Nxf7 {[%clk 0:02:25]}  Kxf7 {[%clk 0:00:24]} 30. Rxf6+ {[%clk 0:02:23]}  Kxe7 {[%clk 0:00:24]} 31. h4 {[%clk 0:02:19]}  Rd8 {[%clk 0:00:14]} 32. Qf4 {[%clk 0:02:06]}  Ne6 {[%clk 0:00:11]} 33. Qe3 {[%clk 0:02:01]}  Qd7 {[%clk 0:00:08]} 34. Rf3 {[%clk 0:01:53]}  Qd2 {[%clk 0:00:08]} 35. Bf6+ {[%clk 0:01:52]}  Ke8 {[%clk 0:00:07]} 36. Bxd8 {[%clk 0:01:52]}  Qxd8 {[%clk 0:00:02]} 37. Qh6 {[%clk 0:01:49]}  Qe7 {[%clk 0:00:01]} 38. h5 {[%clk 0:01:48]}  Nd4 {[%clk 0:00:01]} 39. hxg6 {[%clk 0:01:47]}  Nxf3+ {[%clk 0:00:01]} 40. gxf3 {[%clk 0:01:48]}  hxg6 {[%clk 0:00:02]} 41. Qxg6+ {[%clk 0:01:48]}  Kd7 {[%clk 0:00:03]} 42. Kg2 {[%clk 0:01:41]}  Qf7 {[%clk 0:00:03]} 43. Qg3 {[%clk 0:01:38]}  Be6 {[%clk 0:00:03]} 44. e5 {[%clk 0:01:38]}  Qg8 {[%clk 0:00:03]} 45. f4 {[%clk 0:01:37]}  Qxg3+ {[%clk 0:00:03]} 46. fxg3 {[%clk 0:01:38]}  b5 {[%clk 0:00:04]} 47. f5 {[%clk 0:01:38]}  Bd5+ {[%clk 0:00:04]} 48. Kf2 {[%clk 0:01:39]}  b4 {[%clk 0:00:04]} 49. axb4 {[%clk 0:01:38]}  axb4 {[%clk 0:00:05]} 50. g4 {[%clk 0:01:38]}  c5 {[%clk 0:00:05]} 51. g5 {[%clk 0:01:38]}  c4 {[%clk 0:00:05]} 52. f6 {[%clk 0:01:33]}  b3 {[%clk 0:00:06]} 53. Bf5+ {[%clk 0:01:33]}  Kd8 {[%clk 0:00:02]} 54. e6 {[%clk 0:01:32]}  b2 {[%clk 0:00:02]} 55. e7+ {[%clk 0:01:31]}  Ke8 {[%clk 0:00:02]} 56. g6 {[%clk 0:01:32]}  c3 {[%clk 0:00:01]} 57. Ke3 {[%clk 0:01:32]}  Be6 {[%clk 0:00:01]} 58. Bxe6 {[%clk 0:01:32]}  b1=Q {[%clk 0:00:01]} 59. Bf7+ {[%clk 0:01:32]}  Kd7 {[%clk 0:00:02]} 60. e8=Q+ {[%clk 0:01:33]}  Kc7 {[%clk 0:00:03]} 61. Qe7+ {[%clk 0:01:33]}  Kb6 {[%clk 0:00:03]} 62. Qd6+ {[%clk 0:01:33]}  Ka7 {[%clk 0:00:03]} 63. Qc5+ {[%clk 0:01:33]}  Ka8 {[%clk 0:00:03]} 64. Bd5+ {[%clk 0:01:33]}  Kb8 {[%clk 0:00:03]} 65. Qd6+ {[%clk 0:01:33]}  Ka7 {[%clk 0:00:04]} 66. Qc7+ {[%clk 0:01:33]}  Ka6 {[%clk 0:00:04]} 67. Qb7+ {[%clk 0:01:33]}  Qxb7 {[%clk 0:00:02]} 68. Bxb7+ {[%clk 0:01:34]} 1-0


[Site "https://www.chess.com"]

[Event "Titled Tuesday Blitz June 13 Late 2023"]
[White "Sviridov, Valery"]
[Black "Yanchenko, Roman"]
[WhiteFideId "4120680"]
[BlackFideId "4137329"]
[WhiteElo "2457"]
[BlackElo "2491"]
[Result "1/2-1/2"]
[Round "3"]
[TimeControl "180+2"]
[Date "2023.06.13"]
[WhiteClock "0:00:20"]
[BlackClock "0:00:22"]
[Board "14"]

1. d4 {[%clk 0:02:57]}  d5 {[%clk 0:02:59]} 2. Nf3 {[%clk 0:02:57]}  Nf6 {[%clk 0:03:00]} 3. c4 {[%clk 0:02:57]}  c6 {[%clk 0:03:00]} 4. e3 {[%clk 0:02:55]}  Bf5 {[%clk 0:03:00]} 5. Nc3 {[%clk 0:02:55]}  e6 {[%clk 0:03:00]} 6. Nh4 {[%clk 0:02:56]}  Be4 {[%clk 0:03:01]} 7. f3 {[%clk 0:02:54]}  Bg6 {[%clk 0:03:01]} 8. Qb3 {[%clk 0:02:55]}  Qb6 {[%clk 0:03:02]} 9. Bd2 {[%clk 0:02:55]}  Nbd7 {[%clk 0:03:02]} 10. Be2 {[%clk 0:02:53]}  Bd6 {[%clk 0:03:02]} 11. g3 {[%clk 0:02:51]}  O-O {[%clk 0:03:02]} 12. Nxg6 {[%clk 0:02:50]}  hxg6 {[%clk 0:03:02]} 13. Qc2 {[%clk 0:02:48]}  dxc4 {[%clk 0:03:01]} 14. Bxc4 {[%clk 0:02:48]}  e5 {[%clk 0:03:02]} 15. dxe5 {[%clk 0:02:42]}  Nxe5 {[%clk 0:03:02]} 16. Be2 {[%clk 0:02:43]}  Nd5 {[%clk 0:02:55]} 17. Nxd5 {[%clk 0:02:39]}  cxd5 {[%clk 0:02:56]} 18. Qb3 {[%clk 0:02:38]}  Nc4 {[%clk 0:02:50]} 19. Bxc4 {[%clk 0:02:33]}  dxc4 {[%clk 0:02:50]} 20. Qxb6 {[%clk 0:02:34]}  axb6 {[%clk 0:02:50]} 21. Ke2 {[%clk 0:02:33]}  Rfe8 {[%clk 0:02:47]} 22. a4 {[%clk 0:02:02]}  Be5 {[%clk 0:01:48]} 23. Bc3 {[%clk 0:02:02]}  Bxc3 {[%clk 0:01:40]} 24. bxc3 {[%clk 0:02:03]}  Red8 {[%clk 0:01:40]} 25. Rhd1 {[%clk 0:01:35]}  Rxd1 {[%clk 0:01:39]} 26. Kxd1 {[%clk 0:01:36]}  b5 {[%clk 0:01:39]} 27. a5 {[%clk 0:01:33]}  b6 {[%clk 0:01:39]} 28. a6 {[%clk 0:01:33]}  Kf8 {[%clk 0:01:38]} 29. e4 {[%clk 0:01:04]}  Ke7 {[%clk 0:01:36]} 30. Ke2 {[%clk 0:01:05]}  Kd6 {[%clk 0:01:34]} 31. Ke3 {[%clk 0:01:05]}  Kc5 {[%clk 0:01:34]} 32. f4 {[%clk 0:01:03]}  b4 {[%clk 0:01:28]} 33. cxb4+ {[%clk 0:01:02]}  Kxb4 {[%clk 0:01:29]} 34. a7 {[%clk 0:01:00]}  Kc5 {[%clk 0:01:26]} 35. e5 {[%clk 0:00:55]}  b5 {[%clk 0:01:14]} 36. g4 {[%clk 0:00:55]}  b4 {[%clk 0:01:03]} 37. Kd2 {[%clk 0:00:55]}  Kd4 {[%clk 0:00:55]} 38. Kc2 {[%clk 0:00:54]}  Ke4 {[%clk 0:00:54]} 39. h3 {[%clk 0:00:33]}  Kxf4 {[%clk 0:00:33]} 40. Rf1+ {[%clk 0:00:32]}  Kxe5 {[%clk 0:00:34]} 41. Rxf7 {[%clk 0:00:33]}  g5 {[%clk 0:00:27]} 42. Rxg7 {[%clk 0:00:33]}  Kf4 {[%clk 0:00:27]} 43. Re7 {[%clk 0:00:31]}  Kg3 {[%clk 0:00:26]} 44. Rh7 {[%clk 0:00:32]}  Kg2 {[%clk 0:00:22]} 45. Kb2 {[%clk 0:00:22]}  Kf3 {[%clk 0:00:22]} 46. Kc2 {[%clk 0:00:22]}  Ke4 {[%clk 0:00:21]} 47. Rd7 {[%clk 0:00:17]}  Ke5 {[%clk 0:00:20]} 48. Kb2 {[%clk 0:00:17]}  Ke6 {[%clk 0:00:20]} 49. Rb7 {[%clk 0:00:17]}  Kd6 {[%clk 0:00:20]} 50. Rxb4 {[%clk 0:00:16]}  Rxa7 {[%clk 0:00:20]} 51. Rxc4 {[%clk 0:00:17]}  Rh7 {[%clk 0:00:20]} 52. Rc3 {[%clk 0:00:17]}  Ke5 {[%clk 0:00:20]} 53. Rf3 {[%clk 0:00:17]}  Ke4 {[%clk 0:00:20]} 54. Rf5 {[%clk 0:00:17]}  Rxh3 {[%clk 0:00:20]} 55. Rxg5 {[%clk 0:00:18]}  Rg3 {[%clk 0:00:21]} 56. Rg8 {[%clk 0:00:18]}  Kf4 {[%clk 0:00:21]} 57. g5 {[%clk 0:00:19]}  Rxg5 {[%clk 0:00:21]} 58. Rxg5 {[%clk 0:00:20]}  Kxg5 {[%clk 0:00:22]} 1/2-1/2


[Site "https://www.chess.com"]

[Event "Titled Tuesday Blitz June 13 Late 2023"]
[White "Simonian, Hrair"]
[Black "Van Foreest, Jorden"]
[WhiteFideId "13302337"]
[BlackFideId "1039784"]
[WhiteElo "2447"]
[BlackElo "2633"]
[Result "1-0"]
[Round "3"]
[TimeControl "180+2"]
[Date "2023.06.13"]
[WhiteClock "0:01:21"]
[BlackClock "0:00:08"]
[Board "15"]

1. e4 {[%clk 0:03:00]}  e5 {[%clk 0:02:59]} 2. Nf3 {[%clk 0:03:00]}  Nc6 {[%clk 0:03:00]} 3. Bb5 {[%clk 0:03:00]}  Nf6 {[%clk 0:03:00]} 4. O-O {[%clk 0:02:59]}  d6 {[%clk 0:02:59]} 5. d4 {[%clk 0:02:55]}  exd4 {[%clk 0:02:59]} 6. Nxd4 {[%clk 0:02:55]}  Bd7 {[%clk 0:02:59]} 7. Bxc6 {[%clk 0:02:54]}  bxc6 {[%clk 0:02:59]} 8. Re1 {[%clk 0:02:52]}  Be7 {[%clk 0:02:59]} 9. Nf5 {[%clk 0:02:46]}  Bxf5 {[%clk 0:02:53]} 10. exf5 {[%clk 0:02:47]}  O-O {[%clk 0:02:54]} 11. Qf3 {[%clk 0:02:45]}  d5 {[%clk 0:02:52]} 12. b3 {[%clk 0:02:43]}  Re8 {[%clk 0:02:48]} 13. Bb2 {[%clk 0:02:41]}  Bb4 {[%clk 0:02:31]} 14. Nc3 {[%clk 0:02:40]}  Qd7 {[%clk 0:02:24]} 15. h3 {[%clk 0:02:33]}  h6 {[%clk 0:02:18]} 16. Rxe8+ {[%clk 0:02:30]}  Rxe8 {[%clk 0:02:18]} 17. Na4 {[%clk 0:02:30]}  Ne4 {[%clk 0:02:12]} 18. Rd1 {[%clk 0:02:29]}  Bd6 {[%clk 0:01:47]} 19. c4 {[%clk 0:02:23]}  Be5 {[%clk 0:01:47]} 20. Bc1 {[%clk 0:02:10]}  d4 {[%clk 0:01:36]} 21. g3 {[%clk 0:02:04]}  Bf6 {[%clk 0:01:36]} 22. Kg2 {[%clk 0:02:01]}  Bg5 {[%clk 0:01:29]} 23. Ba3 {[%clk 0:01:56]}  Bf6 {[%clk 0:01:17]} 24. Nc5 {[%clk 0:01:53]}  Nxc5 {[%clk 0:01:17]} 25. Bxc5 {[%clk 0:01:54]}  a6 {[%clk 0:01:17]} 26. Rd3 {[%clk 0:01:52]}  Re1 {[%clk 0:01:10]} 27. Qg4 {[%clk 0:01:44]}  Qe8 {[%clk 0:00:55]} 28. Bxd4 {[%clk 0:01:43]}  Re4 {[%clk 0:00:43]} 29. Qd1 {[%clk 0:01:43]}  Re1 {[%clk 0:00:43]} 30. Qf3 {[%clk 0:01:40]}  Bxd4 {[%clk 0:00:36]} 31. Rxd4 {[%clk 0:01:41]}  Qe5 {[%clk 0:00:34]} 32. Rd8+ {[%clk 0:01:34]}  Kh7 {[%clk 0:00:35]} 33. f6 {[%clk 0:01:30]}  gxf6 {[%clk 0:00:32]} 34. Qg4 {[%clk 0:01:25]}  Qg5 {[%clk 0:00:28]} 35. Qxg5 {[%clk 0:01:21]}  hxg5 {[%clk 0:00:28]} 36. Ra8 {[%clk 0:01:22]}  Kg6 {[%clk 0:00:21]} 37. Rxa6 {[%clk 0:01:22]}  Re6 {[%clk 0:00:15]} 38. Ra7 {[%clk 0:01:22]}  Re2 {[%clk 0:00:14]} 39. Rxc7 {[%clk 0:01:21]}  Rxa2 {[%clk 0:00:14]} 40. Rxc6 {[%clk 0:01:21]}  Rb2 {[%clk 0:00:15]} 41. Rb6 {[%clk 0:01:21]}  Kf5 {[%clk 0:00:15]} 42. c5 {[%clk 0:01:21]}  Rc2 {[%clk 0:00:14]} 43. b4 {[%clk 0:01:21]}  Ke5 {[%clk 0:00:14]} 44. c6 {[%clk 0:01:21]}  f5 {[%clk 0:00:12]} 45. Rb5+ {[%clk 0:01:19]}  Kd6 {[%clk 0:00:10]} 46. Rc5 {[%clk 0:01:20]}  Rxc5 {[%clk 0:00:09]} 47. bxc5+ {[%clk 0:01:20]}  Kxc6 {[%clk 0:00:08]} 48. h4 {[%clk 0:01:21]} 1-0


[Site "https://www.chess.com"]

[Event "Titled Tuesday Blitz June 13 Late 2023"]
[White "Vazquez, Guillermo"]
[Black "Zwirs, Nico"]
[WhiteFideId "3702308"]
[BlackFideId "1036432"]
[WhiteElo "2543"]
[BlackElo "2381"]
[Result "1-0"]
[Round "3"]
[TimeControl "180+2"]
[Date "2023.06.13"]
[WhiteClock "0:00:09"]
[BlackClock "0:00:13"]
[Board "17"]

1. b3 {[%clk 0:03:00]}  d5 {[%clk 0:02:59]} 2. Bb2 {[%clk 0:03:00]}  c5 {[%clk 0:02:59]} 3. e3 {[%clk 0:03:01]}  Nf6 {[%clk 0:02:59]} 4. Nf3 {[%clk 0:03:01]}  e6 {[%clk 0:02:58]} 5. c4 {[%clk 0:03:01]}  Nc6 {[%clk 0:02:59]} 6. cxd5 {[%clk 0:03:00]}  exd5 {[%clk 0:02:59]} 7. d4 {[%clk 0:02:59]}  cxd4 {[%clk 0:02:59]} 8. Nxd4 {[%clk 0:03:00]}  Bb4+ {[%clk 0:02:59]} 9. Bc3 {[%clk 0:03:01]}  a5 {[%clk 0:03:00]} 10. a3 {[%clk 0:02:59]}  Bd6 {[%clk 0:02:59]} 11. Nd2 {[%clk 0:03:00]}  O-O {[%clk 0:02:58]} 12. Be2 {[%clk 0:02:57]}  Nxd4 {[%clk 0:02:43]} 13. Bxd4 {[%clk 0:02:57]}  Qe7 {[%clk 0:02:43]} 14. O-O {[%clk 0:02:36]}  Bf5 {[%clk 0:02:40]} 15. Nf3 {[%clk 0:02:22]}  Ne4 {[%clk 0:02:37]} 16. Bb2 {[%clk 0:02:16]}  Rfd8 {[%clk 0:02:24]} 17. Qd4 {[%clk 0:02:13]}  Qf6 {[%clk 0:02:10]} 18. Qxf6 {[%clk 0:01:34]}  Nxf6 {[%clk 0:02:10]} 19. Bxf6 {[%clk 0:01:33]}  gxf6 {[%clk 0:02:11]} 20. Nd4 {[%clk 0:01:33]}  Be6 {[%clk 0:02:07]} 21. Nb5 {[%clk 0:01:23]}  Be7 {[%clk 0:02:03]} 22. Bd3 {[%clk 0:01:18]}  Rdc8 {[%clk 0:01:57]} 23. Rfc1 {[%clk 0:01:15]}  Rc6 {[%clk 0:01:37]} 24. h3 {[%clk 0:01:08]}  Rac8 {[%clk 0:01:30]} 25. Rd1 {[%clk 0:01:08]}  Rb6 {[%clk 0:01:21]} 26. a4 {[%clk 0:01:06]}  Bd7 {[%clk 0:01:16]} 27. Rac1 {[%clk 0:01:05]}  Rxc1 {[%clk 0:01:13]} 28. Rxc1 {[%clk 0:01:05]}  Rc6 {[%clk 0:01:12]} 29. Rd1 {[%clk 0:01:05]}  Rc5 {[%clk 0:01:10]} 30. g4 {[%clk 0:00:55]}  h6 {[%clk 0:01:06]} 31. Kg2 {[%clk 0:00:55]}  h5 {[%clk 0:01:07]} 32. gxh5 {[%clk 0:00:52]}  Kg7 {[%clk 0:01:03]} 33. Nd4 {[%clk 0:00:49]}  Kh6 {[%clk 0:00:57]} 34. Bf5 {[%clk 0:00:49]}  Bc6 {[%clk 0:00:53]} 35. Bg4 {[%clk 0:00:49]}  Bf8 {[%clk 0:00:49]} 36. Kf3 {[%clk 0:00:39]}  Rc3 {[%clk 0:00:45]} 37. Ke2 {[%clk 0:00:27]}  Bc5 {[%clk 0:00:41]} 38. Rd3 {[%clk 0:00:19]}  Bxd4 {[%clk 0:00:33]} 39. exd4 {[%clk 0:00:18]}  Rxd3 {[%clk 0:00:21]} 40. Kxd3 {[%clk 0:00:19]}  Kg5 {[%clk 0:00:21]} 41. f4+ {[%clk 0:00:13]}  Kh6 {[%clk 0:00:18]} 42. Bf3 {[%clk 0:00:09]}  f5 {[%clk 0:00:17]} 43. Kc3 {[%clk 0:00:07]}  b6 {[%clk 0:00:17]} 44. Kb2 {[%clk 0:00:06]}  f6 {[%clk 0:00:18]} 45. Ka3 {[%clk 0:00:07]}  Be8 {[%clk 0:00:17]} 46. Bxd5 {[%clk 0:00:04]}  Kxh5 {[%clk 0:00:17]} 47. Be6 {[%clk 0:00:05]}  Bg6 {[%clk 0:00:16]} 48. d5 {[%clk 0:00:05]}  Be8 {[%clk 0:00:12]} 49. d6 {[%clk 0:00:05]}  Kh4 {[%clk 0:00:13]} 50. Bxf5 {[%clk 0:00:06]}  Kg3 {[%clk 0:00:12]} 51. d7 {[%clk 0:00:06]}  Bxd7 {[%clk 0:00:13]} 52. Bxd7 {[%clk 0:00:07]}  Kxf4 {[%clk 0:00:13]} 53. Kb2 {[%clk 0:00:08]}  f5 {[%clk 0:00:12]} 54. Kc3 {[%clk 0:00:08]}  Kg5 {[%clk 0:00:12]} 55. Kd2 {[%clk 0:00:08]}  f4 {[%clk 0:00:13]} 56. Ke2 {[%clk 0:00:09]}  Kh4 {[%clk 0:00:13]} 57. Kf3 {[%clk 0:00:09]} 1-0


[Site "https://www.chess.com"]

[Event "Titled Tuesday Blitz June 13 Late 2023"]
[White "Swiercz, Dariusz"]
[Black "Makridis, Dimitrios"]
[WhiteFideId "1126881"]
[BlackFideId "25864475"]
[WhiteElo "2620"]
[BlackElo "2277"]
[Result "1/2-1/2"]
[Round "3"]
[TimeControl "180+2"]
[Date "2023.06.13"]
[WhiteClock "0:00:10"]
[BlackClock "0:01:07"]
[Board "19"]

1. e4 {[%clk 0:03:00]}  c5 {[%clk 0:02:55]} 2. Nf3 {[%clk 0:03:01]}  Nf6 {[%clk 0:02:43]} 3. e5 {[%clk 0:02:56]}  Nd5 {[%clk 0:02:39]} 4. c3 {[%clk 0:02:56]}  Nc6 {[%clk 0:02:39]} 5. d4 {[%clk 0:02:52]}  cxd4 {[%clk 0:02:40]} 6. cxd4 {[%clk 0:02:53]}  d6 {[%clk 0:02:40]} 7. Bc4 {[%clk 0:02:48]}  e6 {[%clk 0:02:39]} 8. O-O {[%clk 0:02:47]}  Be7 {[%clk 0:02:39]} 9. Bd2 {[%clk 0:02:47]}  O-O {[%clk 0:02:39]} 10. Nc3 {[%clk 0:02:47]}  Nxc3 {[%clk 0:02:26]} 11. Bxc3 {[%clk 0:02:48]}  dxe5 {[%clk 0:02:26]} 12. dxe5 {[%clk 0:02:48]}  b6 {[%clk 0:02:25]} 13. Qe2 {[%clk 0:02:48]}  Bb7 {[%clk 0:02:26]} 14. Rad1 {[%clk 0:02:44]}  Qc7 {[%clk 0:02:25]} 15. h4 {[%clk 0:02:43]}  Rad8 {[%clk 0:02:21]} 16. Bd3 {[%clk 0:02:37]}  Nb4 {[%clk 0:02:19]} 17. Bxb4 {[%clk 0:01:56]}  Bxb4 {[%clk 0:02:18]} 18. Bxh7+ {[%clk 0:01:56]}  Kxh7 {[%clk 0:02:18]} 19. Ng5+ {[%clk 0:01:57]}  Kh6 {[%clk 0:01:31]} 20. Qe3 {[%clk 0:01:36]}  Bc5 {[%clk 0:01:24]} 21. Qf4 {[%clk 0:00:46]}  Kg6 {[%clk 0:01:08]} 22. Qg4 {[%clk 0:00:27]}  Kh6 {[%clk 0:01:07]} 23. Qf4 {[%clk 0:00:27]}  Kg6 {[%clk 0:01:07]} 24. Qg4 {[%clk 0:00:26]}  Kh6 {[%clk 0:01:07]} 25. Qf4 {[%clk 0:00:10]} 1/2-1/2


[Site "https://www.chess.com"]

[Event "Titled Tuesday Blitz June 13 Late 2023"]
[White "Rasulov, Vugar"]
[Black "Pakleza, Zbigniew"]
[WhiteFideId "13402390"]
[BlackFideId "1119290"]
[WhiteElo "2509"]
[BlackElo "2410"]
[Result "1-0"]
[Round "3"]
[TimeControl "180+2"]
[Date "2023.06.13"]
[WhiteClock "0:00:56"]
[BlackClock "0:00:02"]
[Board "21"]

1. d4 {[%clk 0:03:00]}  d6 {[%clk 0:02:58]} 2. e4 {[%clk 0:02:59]}  Nf6 {[%clk 0:02:59]} 3. f3 {[%clk 0:03:00]}  Nbd7 {[%clk 0:02:56]} 4. c4 {[%clk 0:02:59]}  e5 {[%clk 0:02:57]} 5. d5 {[%clk 0:02:58]}  Be7 {[%clk 0:02:58]} 6. Be3 {[%clk 0:02:58]}  O-O {[%clk 0:02:58]} 7. Nc3 {[%clk 0:02:58]}  Nh5 {[%clk 0:02:57]} 8. Nge2 {[%clk 0:02:56]}  Bg5 {[%clk 0:02:56]} 9. Qd2 {[%clk 0:02:54]}  Bxe3 {[%clk 0:02:56]} 10. Qxe3 {[%clk 0:02:55]}  g6 {[%clk 0:02:49]} 11. O-O-O {[%clk 0:02:53]}  a6 {[%clk 0:02:42]} 12. g4 {[%clk 0:02:50]}  Ng7 {[%clk 0:02:37]} 13. h4 {[%clk 0:02:49]}  b5 {[%clk 0:02:19]} 14. h5 {[%clk 0:02:49]}  g5 {[%clk 0:02:12]} 15. h6 {[%clk 0:02:39]}  Ne8 {[%clk 0:02:10]} 16. Ng3 {[%clk 0:02:40]}  b4 {[%clk 0:01:47]} 17. Na4 {[%clk 0:02:39]}  Nb6 {[%clk 0:01:30]} 18. Nxb6 {[%clk 0:02:36]}  cxb6 {[%clk 0:01:31]} 19. Nf5 {[%clk 0:02:26]}  f6 {[%clk 0:01:25]} 20. Bd3 {[%clk 0:02:16]}  Qc7 {[%clk 0:01:21]} 21. Kb1 {[%clk 0:02:14]}  Bxf5 {[%clk 0:01:16]} 22. gxf5 {[%clk 0:02:10]}  Qc5 {[%clk 0:01:16]} 23. Qxc5 {[%clk 0:02:01]}  dxc5 {[%clk 0:01:13]} 24. d6 {[%clk 0:01:52]}  Nxd6 {[%clk 0:01:09]} 25. Be2 {[%clk 0:01:53]}  Rfd8 {[%clk 0:01:00]} 26. Rd5 {[%clk 0:01:53]}  Nf7 {[%clk 0:00:53]} 27. a3 {[%clk 0:01:42]}  a5 {[%clk 0:00:48]} 28. Bd1 {[%clk 0:01:37]}  Kf8 {[%clk 0:00:41]} 29. Ba4 {[%clk 0:01:34]}  Ke7 {[%clk 0:00:41]} 30. Bc6 {[%clk 0:01:30]}  Rac8 {[%clk 0:00:35]} 31. Rxd8 {[%clk 0:01:29]}  Rxd8 {[%clk 0:00:28]} 32. Bd5 {[%clk 0:01:30]}  Rg8 {[%clk 0:00:19]} 33. Kc2 {[%clk 0:01:26]}  g4 {[%clk 0:00:16]} 34. fxg4 {[%clk 0:01:23]}  Rxg4 {[%clk 0:00:17]} 35. axb4 {[%clk 0:01:24]}  cxb4 {[%clk 0:00:15]} 36. c5 {[%clk 0:01:21]}  bxc5 {[%clk 0:00:14]} 37. Ra1 {[%clk 0:01:22]}  Nxh6 {[%clk 0:00:05]} 38. Rxa5 {[%clk 0:01:22]}  Rg2+ {[%clk 0:00:05]} 39. Kb3 {[%clk 0:01:18]}  Ng4 {[%clk 0:00:06]} 40. Rxc5 {[%clk 0:01:15]}  h5 {[%clk 0:00:05]} 41. Rc7+ {[%clk 0:01:15]}  Kd6 {[%clk 0:00:06]} 42. Rh7 {[%clk 0:01:05]}  Rh2 {[%clk 0:00:06]} 43. Be6 {[%clk 0:00:56]}  h4 {[%clk 0:00:05]} 44. Kc4 {[%clk 0:00:57]}  Ne3+ {[%clk 0:00:04]} 45. Kb5 {[%clk 0:00:56]}  Rxb2 {[%clk 0:00:02]} 46. Rd7# {[%clk 0:00:56]} 1-0


[Site "https://www.chess.com"]

[Event "Titled Tuesday Blitz June 13 Late 2023"]
[White "Zhigalko, Sergei"]
[Black "Wieczorek, Oskar"]
[WhiteFideId "13502956"]
[BlackFideId "1133950"]
[WhiteElo "2626"]
[BlackElo "2418"]
[Result "1-0"]
[Round "3"]
[TimeControl "180+2"]
[Date "2023.06.13"]
[WhiteClock "0:00:11"]
[BlackClock "0:00:29"]
[Board "23"]

1. e4 {[%clk 0:03:00]}  g6 {[%clk 0:03:00]} 2. d4 {[%clk 0:03:00]}  Bg7 {[%clk 0:02:58]} 3. Nc3 {[%clk 0:03:00]}  b6 {[%clk 0:02:59]} 4. Nf3 {[%clk 0:03:00]}  Bb7 {[%clk 0:02:59]} 5. Be3 {[%clk 0:02:56]}  a6 {[%clk 0:02:59]} 6. Bd3 {[%clk 0:02:56]}  d6 {[%clk 0:03:00]} 7. O-O {[%clk 0:02:55]}  Nd7 {[%clk 0:03:00]} 8. Re1 {[%clk 0:02:54]}  e6 {[%clk 0:03:00]} 9. Ne2 {[%clk 0:02:52]}  h6 {[%clk 0:03:00]} 10. Ng3 {[%clk 0:02:52]}  Ne7 {[%clk 0:03:00]} 11. Qd2 {[%clk 0:02:51]}  Kf8 {[%clk 0:02:59]} 12. a4 {[%clk 0:02:49]}  Kg8 {[%clk 0:02:59]} 13. c3 {[%clk 0:02:50]}  Nf6 {[%clk 0:02:53]} 14. h3 {[%clk 0:02:49]}  Nd7 {[%clk 0:02:42]} 15. Rad1 {[%clk 0:02:47]}  Nf6 {[%clk 0:02:26]} 16. Qc2 {[%clk 0:02:39]}  Qe8 {[%clk 0:02:24]} 17. Bc1 {[%clk 0:02:35]}  Bc6 {[%clk 0:02:23]} 18. b3 {[%clk 0:02:35]}  Bb7 {[%clk 0:02:19]} 19. Bf1 {[%clk 0:02:22]}  Nd7 {[%clk 0:02:19]} 20. c4 {[%clk 0:02:16]}  Rc8 {[%clk 0:02:18]} 21. Bb2 {[%clk 0:02:13]}  a5 {[%clk 0:02:19]} 22. Bc3 {[%clk 0:02:09]}  Qf8 {[%clk 0:02:07]} 23. Qd2 {[%clk 0:02:00]}  Ra8 {[%clk 0:02:05]} 24. Nh2 {[%clk 0:01:56]}  e5 {[%clk 0:01:51]} 25. dxe5 {[%clk 0:01:48]}  Bxe5 {[%clk 0:01:51]} 26. Bxe5 {[%clk 0:01:44]}  Nxe5 {[%clk 0:01:52]} 27. f4 {[%clk 0:01:43]}  N5c6 {[%clk 0:01:52]} 28. Ng4 {[%clk 0:01:38]}  Qg7 {[%clk 0:01:41]} 29. f5 {[%clk 0:01:38]}  gxf5 {[%clk 0:01:35]} 30. exf5 {[%clk 0:01:26]}  f6 {[%clk 0:01:35]} 31. Nh5 {[%clk 0:01:26]}  Qg5 {[%clk 0:01:34]} 32. Nhxf6+ {[%clk 0:00:43]}  Kf7 {[%clk 0:01:33]} 33. Qe2 {[%clk 0:00:38]}  Ne5 {[%clk 0:01:27]} 34. Nxe5+ {[%clk 0:00:33]}  dxe5 {[%clk 0:01:28]} 35. Ng4 {[%clk 0:00:31]}  e4 {[%clk 0:01:17]} 36. f6 {[%clk 0:00:26]}  h5 {[%clk 0:01:06]} 37. Nf2 {[%clk 0:00:12]}  Qxf6 {[%clk 0:00:45]} 38. Nxe4 {[%clk 0:00:12]}  Bxe4 {[%clk 0:00:38]} 39. Qxe4 {[%clk 0:00:12]}  Rad8 {[%clk 0:00:39]} 40. c5 {[%clk 0:00:12]}  bxc5 {[%clk 0:00:29]} 41. Bc4+ {[%clk 0:00:12]}  Kg7 {[%clk 0:00:30]} 42. Qxe7+ {[%clk 0:00:11]}  Qxe7 {[%clk 0:00:30]} 43. Rxe7+ {[%clk 0:00:12]}  Kf6 {[%clk 0:00:31]} 44. Re6+ {[%clk 0:00:11]}  Kf5 {[%clk 0:00:29]} 45. Rf1+ {[%clk 0:00:11]} 1-0


[Site "https://www.chess.com"]